[Event "66th HUN-ch Women 2018"]
[Site "Budapest"]
[Date "2018.12.05"]
[Round "3"]
[White "Juhasz, Barbara"]
[Black "Lakos, Nikoletta"]
[Result "1-0"]
[ECO "C41"]
[WhiteElo "2176"]
[BlackElo "2243"]
[Annotator "NA"]
[PlyCount "87"]
[EventDate "2018.12.03"]
[EventType "tourn"]
[EventCountry "HUN"]
[SourceTitle "playchess.com"]
[Source "ChessBase"]
[SourceQuality "1"]
[TimeControl "40/5400+30:1800+30"]

{[%evp 9,64,25,41,27,29,17,35,14,45,40,32767,19,31,35,32767,32,64,75,72,32767,83,100,87,99,94,40,61,0,28,41,160,32767,163,151,172,162,228,32767,32767,237,32767,32767,225,164,371,410,451,448,862,414,593,568,537,593,32767,620,175]} 1. e4 {[%emt 0:00:07]} d6 {[%emt 0:00:16]} 2. d4 {[%emt 0:00:09]} Nf6 {[%emt 0:00:10]} 3. Nc3 {[%emt 0:00:12]} e5 {[%emt 0:00:16]} 4. Nf3 {[%emt 0:00:16]} Nbd7 {[%emt 0:00:25]} 5. Bc4 {[%emt 0:00:09]} Be7 {[%emt 0:00:31]} 6. a4 {[%emt 0:00:06]} O-O {[%emt 0:02:17]} 7. O-O {[%emt 0:00:30]} exd4 {[%emt 0:05:57] C41: Philidor Defence} (7... c6 8. Re1 b6 9. h3 a6 10. Ba2 Rb8 11. Be3 b5 12. axb5 axb5 13. b4 Bb7 14. Bb3 exd4 15. Nxd4 d5 16. exd5 Bxb4 17. Bd2 cxd5 18. Ncxb5 Bxd2 19. Qxd2 {½-½ (30) Kryvoruchko,Y (2705)-Laznicka,V (2671) Brest 2018}) 8. Qxd4 {[%emt 0:02:08]} Nb6 {[%emt 0:01:57]} 9. Ba2 {[%emt 0:16:38]} a5 {[%emt 0:00:54] LiveBook: 5 Games} 10. h3 {[%emt 0:00:26]} Nfd7 {[%emt 0:02:19]} 11. Bf4 $146 {[%emt 0:19:57]} ({Predecessor:} 11. Be3 Nc5 12. Rfd1 Be6 13. e5 Bxa2 14. Rxa2 Qc8 15. Qf4 {0-1 (73) Paramos Dominguez,R (2398)-Hoffman,A (2433) Famalicao 2015}) 11... Bf6 {[%emt 0:16:55]} 12. Qe3 {[%emt 0:00:30]} Qe7 {[%emt 0:12:41]} 13. Nb5 {[%emt 0:20:57]} Ne5 {[%emt 0:19:08]} 14. Bxe5 {[%emt 0:03:47]} Bxe5 {[%emt 0:02:44]} 15. Nxe5 {[%emt 0:00:49]} dxe5 {[%emt 0:00:07]} 16. Bb3 {[%emt 0:00:36]} Be6 {[%emt 0:21:42]} 17. Rad1 {[%emt 0:15:10]} Bxb3 {[%emt 0:06:39]} 18. Qxb3 {[%emt 0:01:22]} (18. cxb3 $14 Nc8 19. Rd3) 18... Qc5 {[%emt 0:02:18]} 19. Rd3 {[%emt 0:00:07]} Rfd8 {[%emt 0:01:32]} (19... Qe7 $14) 20. Rc3 {[%emt 0:04:42]} Qb4 {[%emt 0:00:12]} 21. Rxc7 {[%emt 0:00:06]} Qxb3 {[%emt 0:00:53]} 22. cxb3 {[%emt 0:00:05]} Nd7 {[%emt 0:00:23]} (22... Rab8 $16 23. Rc5 f6) 23. Rd1 {[%emt 0:02:32]} Nf6 {[%emt 0:00:09]} 24. Rxd8+ {[%emt 0:01:15]} Rxd8 {[%emt 0:00:00]} 25. Nc3 {[%emt 0:00:09]} b6 {[%emt 0:00:32]} 26. Rc6 {[%emt 0:00:45]} h5 $2 {[%emt 0:00:45]} (26... Rb8 27. f3 Kf8) 27. Rxb6 {[%emt 0:00:08]} Rd2 {[%emt 0:00:08]} 28. b4 {[%emt 0:01:53]} Nd7 {[%emt 0:01:32]} (28... axb4 $142 29. Rxb4 Rd8) 29. Rb5 {[%emt 0:02:07]} Rxb2 {[%emt 0:00:15]} 30. bxa5 {[%emt 0:00:05]} Rc2 {[%emt 0:00:08]} 31. a6 {[%emt 0:03:08]} Rxc3 32. a7 $18 {[%emt 0:00:04]} Rc1+ {[%emt 0:00:35]} 33. Kh2 {[%emt 0:00:04]} Rc8 {[%emt 0:00:15]} 34. Rb7 {[%emt 0:00:04]} Ra8 {[%emt 0:01:36]} 35. Rxd7 {[%emt 0:00:04]} g6 {[%emt 0:00:33]} 36. Rb7 {[%emt 0:00:20]} Kg7 {[%emt 0:00:14]} 37. Kg3 {[%emt 0:00:09]} g5 {[%emt 0:00:48]} 38. h4 {[%emt 0:01:03]} g4 {[%emt 0:00:18]} 39. f4 {[%emt 0:00:30]} gxf3 {[%emt 0:00:21]} 40. Kxf3 {[%emt 0:00:00]} Kg6 {[%emt 0:00:00]} 41. Rb6+ {[%emt 0:02:50]} f6 {[%emt 0:03:54]} 42. Ra6 {[%emt 0:00:04]} Kg7 {[%emt 0:01:08]} 43. g4 {[%emt 0:00:05]} Kg6 {[%emt 0:00:25]} 44. g5 {[%emt 0:00:12]} 1-0

[Event "66th HUN-ch Women 2018"]
[Site "Budapest"]
[Date "2018.12.06"]
[Round "4"]
[White "Lakos, Nikoletta"]
[Black "Havanecz, Bianka"]
[Result "0-1"]
[ECO "C44"]
[WhiteElo "2243"]
[BlackElo "2247"]
[Annotator "NA"]
[PlyCount "136"]
[EventDate "2018.12.03"]
[EventType "tourn"]
[EventCountry "HUN"]
[SourceTitle "playchess.com"]
[Source "ChessBase"]
[SourceQuality "1"]
[TimeControl "40/5400+30:1800+30"]

{[%evp 8,128,-7,32767,-2,0,0,32767,33,0,10,-8,-9,-13,41,32767,32767,32767,32767,32767,32767,61,58,59,32767,47,98,61,83,52,32767,96,103,70,118,94,96,94,32767,128,127,175,33,14,29,31,70,71,82,32767,32767,32767,67,75,153,149,32767,32767,217,284,283,154,32767,128,32767,32767,102,0,0,-160,32767,-155,32767,32767,-142,-264,-264,32767,32767,32767,32767,-220,-246,-245,-276,-276,-268,-312,-293,32767,-556,-473,-602,-423,32767,32767,32767,32767,32767,32767,-981,-641,-4651,32767,-996,-841,-1218,-5142,-4134,32767,32767,32767,32767,32767,32767,32767,-6042,32767,32767,32767,32767,32767,0]} 1. e4 {[%emt 0:00:03]} e5 {[%emt 0:00:05]} 2. Nf3 {[%emt 0:00:22]} Nc6 {[%emt 0:00:05]} 3. d3 {[%emt 0:00:28]} Nf6 {[%emt 0:01:08]} 4. Be2 {[%emt 0:00:48]} d5 {[%emt 0:03:15]} 5. Nbd2 {[%emt 0:01:42]} Be7 {[%emt 0:00:18]} 6. O-O {[%emt 0:04:01]} O-O {[%emt 0:00:08]} 7. a3 {[%emt 0:12:55] LiveBook: 4 Games C44: Ponziani Opening and Scotch Gambit} Bg4 $146 {[%emt 0:00:34]} ({Predecessor:} 7... a5 8. b3 Be6 9. Bb2 Nd7 10. c3 f6 11. Re1 Nb6 12. Qc2 Qd7 13. b4 axb4 14. axb4 Rfe8 {½-½ (26) Kuzmicz,K (2485)-Koksal,E (2339) Skopje 2015}) 8. h3 {[%emt 0:03:41]} Bh5 {[%emt 0:04:37]} 9. b4 {[%emt 0:18:36]} dxe4 {[%emt 0:05:48]} 10. dxe4 {[%emt 0:02:40]} Bg6 {[%emt 0:08:06]} 11. Bd3 {[%emt 0:01:50]} a6 {[%emt 0:00:45]} 12. Bb2 {[%emt 0:01:46]} Nd7 {[%emt 0:00:17]} 13. Nc4 {[%emt 0:02:46]} f6 {[%emt 0:00:10]} 14. Nh4 {[%emt 0:05:38]} Bf7 {[%emt 0:04:03]} 15. Nf5 {[%emt 0:00:59]} Kh8 {[%emt 0:10:59]} 16. Nce3 {[%emt 0:12:33]} Qe8 {[%emt 0:02:04]} 17. c4 {[%emt 0:03:16]} Bd8 {[%emt 0:02:22]} 18. Nd5 {[%emt 0:06:29]} Rg8 {[%emt 0:01:26]} 19. Qc2 {[%emt 0:10:51]} Nf8 {[%emt 0:00:50]} 20. b5 {[%emt 0:01:19]} Nb8 {[%emt 0:00:38]} (20... axb5 $14 21. cxb5 Na5) 21. a4 {[%emt 0:03:05]} c6 {[%emt 0:07:30]} 22. bxc6 {[%emt 0:00:56]} Nxc6 {[%emt 0:03:06]} 23. Nd6 {[%emt 0:03:13]} Qd7 {[%emt 0:00:05]} 24. Nxf7+ {[%emt 0:01:00]} (24. Ba3 $16) 24... Qxf7 {[%emt 0:00:01]} 25. c5 {[%emt 0:00:48]} Ne6 {[%emt 0:00:42]} 26. Bc4 {[%emt 0:00:19]} Qg6 {[%emt 0:04:52]} 27. Ne3 {[%emt 0:00:49]} Re8 {[%emt 0:02:33]} 28. Bxe6 {[%emt 0:00:07]} Rxe6 {[%emt 0:00:01]} 29. Rfd1 {[%emt 0:00:39]} Qe8 {[%emt 0:02:08]} 30. Nf5 {[%emt 0:00:26]} Ba5 {[%emt 0:03:13]} (30... Bc7 $142) 31. Qb3 {[%emt 0:00:32]} Nd8 {[%emt 0:01:43] [#]} 32. Rd5 $1 {[%emt 0:00:35]} b6 {[%emt 0:01:39]} 33. Nd6 {[%emt 0:00:34]} Qc6 {[%emt 0:00:56]} 34. Nc4 {[%emt 0:00:11]} (34. Ba3 $18 {and White stays clearly on top.}) 34... Nb7 {[%emt 0:01:55]} 35. cxb6 {[%emt 0:00:31]} Bxb6 {[%emt 0:01:48]} 36. Rc1 {[%emt 0:00:14]} Bc5 {[%emt 0:00:35]} 37. Nd2 {[%emt 0:01:01]} (37. a5 $16 Rae8 38. Ba3 Bxa3 39. Qxa3) 37... Qb6 {[%emt 0:00:48]} 38. Rdxc5 $2 {[%emt 0:00:41]} ({White should play} 38. Kf1 $11) 38... Nxc5 {[%emt 0:00:22]} 39. Rxc5 {[%emt 0:00:11]} Qxb3 {[%emt 0:00:31]} 40. Nxb3 {[%emt 0:00:00]} Rb6 {[%emt 0:00:00]} 41. Rc3 {[%emt 0:15:11]} (41. Bxe5 $17 {was the only chance.} Rxb3 42. Bc3) 41... Rab8 {[%emt 0:00:11]} 42. Nc5 {[%emt 0:00:10]} Rxb2 {[%emt 0:00:12]} 43. Nxa6 {[%emt 0:00:02]} Ra8 {[%emt 0:00:31]} 44. Nc5 {[%emt 0:03:18]} h5 {[%emt 0:02:05]} 45. g3 {[%emt 0:01:08]} Rc8 {[%emt 0:00:44]} 46. Kg2 {[%emt 0:02:01]} Rc6 {[%emt 0:01:29]} 47. g4 {[%emt 0:04:59]} h4 {[%emt 0:03:09]} 48. g5 {[%emt 0:05:54]} fxg5 {[%emt 0:00:14]} 49. Rb3 {[%emt 0:00:44]} Rxb3 {[%emt 0:00:19]} 50. Nxb3 {[%emt 0:00:02]} Rc4 {[%emt 0:01:24]} 51. Nd2 {[%emt 0:00:09]} Rxa4 52. Nf3 {[%emt 0:00:14]} Rxe4 {[%emt 0:00:47]} 53. Nxg5 {[%emt 0:00:05]} Rf4 {[%emt 0:00:28]} 54. f3 {[%emt 0:01:57]} Rf5 {[%emt 0:01:20]} 55. Ne4 {[%emt 0:00:13]} Kh7 {[%emt 0:00:24]} 56. Kf2 {[%emt 0:00:09]} Kg6 {[%emt 0:00:33]} 57. Ke3 {[%emt 0:00:05]} Rf4 {[%emt 0:00:50]} 58. Ke2 {[%emt 0:00:31]} Rf8 {[%emt 0:00:19]} 59. Ke3 {[%emt 0:00:41]} Ra8 {[%emt 0:00:26]} 60. Nd6 {[%emt 0:00:42]} Ra4 {[%emt 0:00:19]} 61. Nb5 {[%emt 0:00:40]} Ra2 {[%emt 0:00:36]} 62. f4 {[%emt 0:00:33]} Rh2 {[%emt 0:00:45]} 63. fxe5 {[%emt 0:00:11]} Kf5 {[%emt 0:00:12]} 64. Nd4+ {[%emt 0:00:02]} Kg6 $11 {[%emt 0:00:29]} 65. Kf4 {[%emt 0:03:17]} Rxh3 {[%emt 0:00:28]} 66. Kg4 {[%emt 0:00:29]} Re3 {[%emt 0:00:55]} 67. Nf3 {[%emt 0:00:37]} Rxf3 {[%emt 0:00:15]} 68. Kxf3 {[%emt 0:00:02]} Kf5 {[%emt 0:00:06]} 0-1

[Event "66th HUN-ch Women 2018"]
[Site "Budapest"]
[Date "2018.12.06"]
[Round "4"]
[White "Terbe, Zsuzsanna"]
[Black "Erdos, Boglarka"]
[Result "1-0"]
[ECO "D78"]
[WhiteElo "2180"]
[BlackElo "2137"]
[Annotator "NA"]
[PlyCount "97"]
[EventDate "2018.12.03"]
[EventType "tourn"]
[EventCountry "HUN"]
[SourceTitle "playchess.com"]
[Source "ChessBase"]
[SourceQuality "1"]
[TimeControl "40/5400+30:1800+30"]

{[%evp 8,81,14,12,32767,32767,32767,7,32767,32767,32767,11,24,17,25,32767,6,-10,0,0,32767,32767,32767,32767,0,-23,-27,32767,0,0,0,-41,-41,-51,-29,-27,-32,-77,-55,-118,-31,-18,-34,-39,0,32767,32767,0,32767,32767,0,0,0,-23,32767,-15,32767,42,32767,20,204,125,226,219,209,239,240,139,32767,198,135,210,247,169,1177,1100]} 1. Nf3 {[%emt 0:02:44]} Nf6 {[%emt 0:00:11]} 2. g3 {[%emt 0:00:30]} g6 {[%emt 0:00:06]} 3. Bg2 {[%emt 0:00:06]} Bg7 {[%emt 0:00:05]} 4. O-O {[%emt 0:00:05]} O-O {[%emt 0:00:16]} 5. d4 {[%emt 0:00:04]} d5 {[%emt 0:00:04]} 6. c4 {[%emt 0:00:07]} c6 {[%emt 0:00:05]} 7. Qb3 {[%emt 0:03:50]} a5 {[%emt 0:00:42]} 8. cxd5 {[%emt 0:00:57] D78: Fianchetto Grünfeld: 6 0-0 c6} a4 {[%emt 0:00:25]} 9. Qd1 {[%emt 0:00:28]} cxd5 {[%emt 0:00:16]} 10. Nc3 {[%emt 0:00:35]} Ne4 {[%emt 0:01:49] LiveBook: 8 Games} (10... a3 11. bxa3 Ne4 12. Bb2 Nxc3 13. Bxc3 Rxa3 14. Bb2 Ra6 15. Ne5 Nc6 {1-0 (37) Vachier Lagrave,M (2780)-Gupta,A (2588) chess.com INT 2018}) 11. Ne5 {[%emt 0:15:57]} Bf5 {[%emt 0:31:05]} 12. Bf4 $146 {[%emt 0:08:39]} ({Predecessor:} 12. Nxa4 Qa5 13. Nc3 Nxc3 14. bxc3 Qxc3 {½-½ (30) Khademalsharieh,S (2419)-Ni,S (2450) China 2017}) 12... a3 {[%emt 0:12:01]} 13. Nxe4 {[%emt 0:02:25]} Bxe4 {[%emt 0:11:56]} 14. Bxe4 {[%emt 0:06:53]} dxe4 {[%emt 0:00:22]} 15. bxa3 {[%emt 0:00:26]} Rxa3 {[%emt 0:05:15]} 16. Be3 {[%emt 0:07:37]} Qd5 {[%emt 0:04:29]} 17. Qc2 {[%emt 0:06:03]} f6 {[%emt 0:13:02]} 18. Nc4 {[%emt 0:02:57]} Ra6 $1 {[%emt 0:00:08]} 19. Nd2 {[%emt 0:02:44]} f5 {[%emt 0:00:12]} 20. Qb3 {[%emt 0:05:35]} Qxb3 {[%emt 0:02:21]} 21. Nxb3 {[%emt 0:00:20]} Nc6 {[%emt 0:04:16]} 22. Rfd1 {[%emt 0:02:10]} Rfa8 {[%emt 0:03:34]} 23. Rd2 {[%emt 0:03:27]} (23. Rab1 $15) 23... Ra3 {[%emt 0:00:19]} (23... b6 $17 24. Bg5 Kf7) 24. Nc5 {[%emt 0:03:19]} b6 {[%emt 0:04:52]} 25. Ne6 {[%emt 0:02:53]} Bf6 {[%emt 0:00:07]} 26. Rb1 {[%emt 0:03:11]} Na5 {[%emt 0:00:58]} 27. Rc2 {[%emt 0:02:14]} Ra4 {[%emt 0:00:44]} 28. Rbc1 {[%emt 0:05:36]} Nb7 {[%emt 0:01:45]} 29. Rc8+ {[%emt 0:05:54]} Kf7 {[%emt 0:00:04]} 30. Rxa8 {[%emt 0:00:35]} Rxa8 {[%emt 0:00:02]} 31. d5 {[%emt 0:00:05]} Rxa2 {[%emt 0:03:16]} 32. Rc8 {[%emt 0:02:01]} g5 {[%emt 0:00:07]} 33. Bxg5 {[%emt 0:02:23]} Ra5 $2 {[%emt 0:00:58]} (33... Bxg5 $11 34. Nxg5+ Kf6 35. Nxh7+ Ke5) 34. Rf8+ {[%emt 0:02:06]} Kg6 {[%emt 0:00:05]} 35. Bxf6 {[%emt 0:00:34]} exf6 {[%emt 0:00:31]} 36. Rg8+ {[%emt 0:00:31]} Kh6 {[%emt 0:00:22]} 37. Nf4 {[%emt 0:00:43]} Nc5 {[%emt 0:00:48]} 38. Rb8 {[%emt 0:01:35]} Ra1+ {[%emt 0:00:38]} 39. Kg2 {[%emt 0:00:04]} Rb1 {[%emt 0:00:25]} 40. Ne6 {[%emt 0:00:00]} Nd7 $18 {[%emt 0:00:00]} (40... Rb5 41. Nf8 Ra5 42. Rxb6 Kg7) 41. Rb7 {[%emt 0:02:01]} Ne5 {[%emt 0:03:28]} 42. Nf8 {[%emt 0:01:21]} Rb2 {[%emt 0:08:08]} 43. h4 {[%emt 0:02:00]} Kh5 {[%emt 0:00:38]} 44. Rxh7+ {[%emt 0:00:09]} Kg4 {[%emt 0:00:16]} 45. Rg7+ {[%emt 0:07:37]} Kh5 {[%emt 0:00:11]} 46. Kh3 {[%emt 0:00:14]} Ng4 {[%emt 0:00:33]} 47. Rh7+ {[%emt 0:00:42]} Nh6 {[%emt 0:00:09]} 48. Ne6 {[%emt 0:00:47]} Kg6 {[%emt 0:00:21]} 49. Rg7+ {[%emt 0:00:07]} 1-0

[Event "66th HUN-ch Women 2018"]
[Site "Budapest"]
[Date "2018.12.06"]
[Round "4"]
[White "Egyed, Judit"]
[Black "Gal, Hanna Krisztina"]
[Result "0-1"]
[ECO "B42"]
[WhiteElo "2045"]
[BlackElo "2189"]
[Annotator "NA"]
[PlyCount "94"]
[EventDate "2018.12.03"]
[EventType "tourn"]
[EventCountry "HUN"]
[SourceTitle "playchess.com"]
[Source "ChessBase"]
[SourceQuality "1"]
[TimeControl "40/5400+30:1800+30"]

{[%evp 13,81,0,23,23,32767,22,32767,-12,32767,-12,-19,-15,0,0,0,-29,4,-43,-24,32767,32767,-27,32767,32767,32767,-53,-42,32767,-56,32767,32767,-91,-78,-89,-77,-118,-77,-80,-65,-98,-110,-107,-114,-114,-111,-125,32767,32767,32767,32767,32767,32767,32767,-183,32767,32767,32767,32767,32767,32767,32767,-165,-148,32767,-177,-143,-180,32767,-186,-205]} 1. e4 {[%emt 0:00:07]} c5 {[%emt 0:00:08]} 2. Nf3 {[%emt 0:00:05]} e6 {[%emt 0:00:07]} 3. d4 {[%emt 0:00:04]} cxd4 {[%emt 0:00:08]} 4. Nxd4 {[%emt 0:00:05]} a6 {[%emt 0:00:11]} 5. Bd3 {[%emt 0:00:05]} Nf6 {[%emt 0:00:11]} 6. O-O {[%emt 0:00:11]} Qc7 {[%emt 0:00:10]} 7. Kh1 {[%emt 0:00:26]} d6 {[%emt 0:00:34]} 8. f4 {[%emt 0:00:07]} Nbd7 {[%emt 0:01:45]} 9. Nc3 {[%emt 0:00:48]} Be7 {[%emt 0:00:19]} 10. Be3 {[%emt 0:00:11] B82: Sicilian Scheveningen: 6 f4} (10. Bd2 b6 11. Qe2 Bb7 12. Rae1 Nc5 13. e5 dxe5 14. fxe5 Nfd7 15. Qg4 Nxe5 16. Qg3 O-O-O 17. Ndb5 axb5 18. Nxb5 Rxd3 19. cxd3 {½-½ (55) Volokitin,A (2638)-Van Wely,L (2656) Saint-Quentin 2014}) 10... b5 11. a3 {[%emt 0:02:03]} Bb7 {[%emt 0:04:51]} 12. Qf3 {[%emt 0:04:27]} Nc5 {[%emt 0:03:04]} 13. Rae1 {[%emt 0:04:18]} O-O {[%emt 0:03:10] LiveBook: 8 Games} 14. Bf2 {[%emt 0:05:23]} g6 {[%emt 0:17:51]} 15. Qh3 {[%emt 0:04:57]} e5 {[%emt 0:07:29]} 16. fxe5 {[%emt 0:11:30]} dxe5 {[%emt 0:00:14]} 17. Nb3 $146 {[%emt 0:16:01]} Nxb3 {[%emt 0:04:29]} 18. cxb3 {[%emt 0:00:07]} Rad8 {[%emt 0:03:01]} 19. Rc1 {[%emt 0:08:35]} Qd7 {[%emt 0:08:26]} 20. Qxd7 {[%emt 0:00:44]} Rxd7 {[%emt 0:01:06]} 21. Bc2 {[%emt 0:06:20]} b4 {[%emt 0:15:26]} 22. axb4 {[%emt 0:00:58]} Bxb4 {[%emt 0:00:49]} 23. Be1 {[%emt 0:10:09]} Ng4 {[%emt 0:04:04]} 24. Na4 {[%emt 0:07:48]} Bxe1 {[%emt 0:01:46]} 25. Rfxe1 {[%emt 0:00:07]} Rc7 {[%emt 0:02:28]} 26. Nc3 {[%emt 0:02:04]} Rd8 {[%emt 0:04:03]} 27. Re2 {[%emt 0:02:11]} Kg7 {[%emt 0:02:36]} 28. h3 {[%emt 0:01:06]} Nf6 {[%emt 0:00:19]} 29. Kh2 {[%emt 0:01:50]} Nh5 {[%emt 0:02:55]} 30. g3 {[%emt 0:00:25]} Rcd7 {[%emt 0:00:19]} 31. Rf1 {[%emt 0:00:26]} a5 {[%emt 0:01:31]} 32. Ref2 {[%emt 0:00:39]} Rd2 {[%emt 0:03:20]} 33. Kg2 {[%emt 0:09:33]} (33. Nb1 $17 Rxf2+ 34. Rxf2) 33... Ba6 {[%emt 0:01:49]} 34. Rd1 {[%emt 0:00:07]} Rxd1 {[%emt 0:00:23]} 35. Bxd1 {[%emt 0:00:19]} Nf6 {[%emt 0:00:42]} 36. Bc2 {[%emt 0:01:04]} Bd3 {[%emt 0:01:30]} 37. Kf3 {[%emt 0:01:01]} Bxc2 {[%emt 0:00:47]} 38. Rxc2 {[%emt 0:00:04] [#]} Rd3+ $1 {[%emt 0:01:08]} 39. Kf2 {[%emt 0:00:16]} Nh5 {[%emt 0:00:15]} 40. Ne2 {[%emt 0:00:00]} Rxb3 {[%emt 0:00:00]} 41. Rc5 $19 {[%emt 0:08:39]} Rxb2 {[%emt 0:06:16]} 42. Rxa5 {[%emt 0:00:15]} Nxg3 {[%emt 0:01:12]} 43. Kxg3 {[%emt 0:00:05]} Rxe2 {[%emt 0:00:06]} 44. Rxe5 {[%emt 0:00:05]} Re3+ {[%emt 0:03:04]} 45. Kg2 {[%emt 0:03:01]} Kf8 {[%emt 0:03:04]} 46. h4 {[%emt 0:02:18]} f6 {[%emt 0:00:09]} 47. Re6 {[%emt 0:06:11]} Kf7 {[%emt 0:00:06]} 0-1

[Event "66th HUN-ch Women 2018"]
[Site "Budapest"]
[Date "2018.12.06"]
[Round "4"]
[White "Gaal, Zsoka"]
[Black "Varga, Klara"]
[Result "1-0"]
[ECO "A46"]
[WhiteElo "2020"]
[BlackElo "2242"]
[Annotator "NA"]
[PlyCount "107"]
[EventDate "2018.12.03"]
[EventType "tourn"]
[EventCountry "HUN"]
[SourceTitle "playchess.com"]
[Source "ChessBase"]
[SourceQuality "1"]
[TimeControl "40/5400+30:1800+30"]

{[%evp 8,86,21,32767,20,30,31,14,2,19,25,32767,17,32767,18,8,6,-7,3,32767,0,32767,-13,-35,-5,-25,32767,0,32767,22,6,10,31,12,43,32767,32767,32767,32767,29,32767,32767,32767,66,97,68,64,75,77,81,87,81,93,70,75,64,62,37,68,62,72,61,116,83,99,76,32767,74,90,87,75,92,117,106,106,85,102,91,101,47,245]} 1. d4 {[%emt 0:00:04]} Nf6 {[%emt 0:00:06]} 2. Nf3 {[%emt 0:00:09]} e6 {[%emt 0:00:19]} 3. g3 {[%emt 0:00:08]} c5 {[%emt 0:00:44]} 4. Bg2 {[%emt 0:00:22]} Nc6 {[%emt 0:00:26]} 5. O-O {[%emt 0:00:23]} d5 {[%emt 0:00:19]} 6. c4 {[%emt 0:00:08]} dxc4 {[%emt 0:03:03]} 7. Qa4 {[%emt 0:00:09]} Bd7 {[%emt 0:00:04]} 8. Qxc4 {[%emt 0:00:32]} b5 {[%emt 0:00:13]} 9. Qd3 {[%emt 0:00:31]} c4 {[%emt 0:00:35]} 10. Qd1 {[%emt 0:00:23]} Rc8 {[%emt 0:00:20]} 11. Ne5 {[%emt 0:02:48] LiveBook: 10 Games E04: Open Catalan: 5 Nf3} Qc7 {[%emt 0:13:09]} (11... Bd6 12. Nxd7 Qxd7 13. Nc3 a6 14. Bg5 Be7 15. e3 O-O 16. Qe2 Rfd8 17. Rfd1 (17. Bxf6 Bxf6 18. a4 Rb8 {½-½ (34) Mueller,M (2227)-Krzyzanowski,W (2242) LSS email 2013}) 17... Nd5 18. Bxe7 Qxe7 {½-½ (55) Fedoseev,V (2718)-Yu,Y (2751) Riadh 2017}) 12. Bf4 $146 {[%emt 0:17:55]} Bd6 {[%emt 0:02:03]} 13. Nxd7 {[%emt 0:01:54]} Qxd7 {[%emt 0:00:31]} ({But not} 13... Kxd7 $6 14. Bg5 $16) 14. Bxd6 {[%emt 0:03:43]} Qxd6 {[%emt 0:00:03]} 15. Na3 {[%emt 0:03:07]} a6 {[%emt 0:03:34]} 16. Nc2 {[%emt 0:03:39]} Rd8 {[%emt 0:01:23]} 17. a4 {[%emt 0:07:04]} b4 {[%emt 0:05:48]} 18. Bxc6+ {[%emt 0:07:02]} Qxc6 {[%emt 0:00:12]} 19. Nxb4 {[%emt 0:01:55]} Qb6 {[%emt 0:01:08]} 20. Nc2 {[%emt 0:04:23]} Qxb2 {[%emt 0:01:17]} 21. Rb1 {[%emt 0:01:42]} Qc3 {[%emt 0:00:03]} 22. Nb4 {[%emt 0:04:51]} O-O {[%emt 0:01:23]} 23. e3 {[%emt 0:12:36]} (23. Nc6 $16) 23... Ne4 {[%emt 0:00:00]} 24. Nc6 {[%emt 0:03:13]} Rd6 {[%emt 0:15:08]} 25. Rc1 {[%emt 0:01:19]} Qb3 {[%emt 0:09:59]} 26. Na5 {[%emt 0:01:57]} Qb4 {[%emt 0:02:17]} 27. Nxc4 {[%emt 0:01:42]} Rc6 {[%emt 0:02:13]} 28. Qd3 {[%emt 0:07:54]} Nf6 {[%emt 0:01:07]} 29. Ne5 {[%emt 0:01:48]} Rxc1 {[%emt 0:00:10]} 30. Rxc1 {[%emt 0:00:01]} Qxa4 {[%emt 0:00:08]} 31. Kg2 {[%emt 0:08:22]} h5 {[%emt 0:07:11]} 32. h4 {[%emt 0:00:24]} Qa5 {[%emt 0:01:24]} 33. Rc5 {[%emt 0:00:43]} Qa2 {[%emt 0:02:03]} 34. Qc2 {[%emt 0:03:20]} Qa3 {[%emt 0:04:43]} (34... Qxc2 $14 35. Rxc2 Ra8) 35. Rc8 {[%emt 0:00:42]} a5 {[%emt 0:01:00]} 36. Qc7 {[%emt 0:00:32]} Rxc8 {[%emt 0:01:05]} 37. Qxc8+ {[%emt 0:00:01]} Qf8 {[%emt 0:00:10] [#]} 38. Qa6 $1 {[%emt 0:00:13]} Qd8 {[%emt 0:05:29]} 39. Qa7 {[%emt 0:00:58]} Qe8 {[%emt 0:07:13]} 40. Qxa5 {[%emt 0:00:00]} Ng4 {[%emt 0:00:00]} 41. Nxg4 {[%emt 0:03:52]} hxg4 {[%emt 0:02:37]} 42. Qe5 {[%emt 0:11:51]} Qc6+ {[%emt 0:00:50]} 43. Kh2 {[%emt 0:00:19]} Qf3 $18 {[%emt 0:00:19]} (43... f5 $11 {and Black stays safe.}) 44. Qb8+ {[%emt 0:00:29]} Kh7 {[%emt 0:00:03]} 45. Qf4 {[%emt 0:00:28]} Qxf4 {[%emt 0:11:54]} 46. gxf4 {[%emt 0:00:19]} f5 {[%emt 0:02:36]} 47. Kg3 {[%emt 0:02:02]} g6 {[%emt 0:04:12]} 48. f3 {[%emt 0:04:27]} gxf3 {[%emt 0:00:07]} 49. Kxf3 {[%emt 0:00:18]} Kg7 {[%emt 0:00:21]} 50. Ke2 {[%emt 0:02:59]} Kf7 {[%emt 0:01:54]} 51. Kd3 {[%emt 0:00:33]} Ke7 {[%emt 0:00:04]} 52. Kc4 {[%emt 0:01:27]} Kd6 {[%emt 0:05:48]} 53. d5 {[%emt 0:00:32]} exd5+ {[%emt 0:01:55]} 54. Kd4 {[%emt 0:00:01]} 1-0